{"text_format":"3","workbook":"xlsx","n_sheets":1,"sheets":["Henk. koht. kuukausibudjetti"],"read":"whole","date_system":"1900"}

{"sheet":"Henk. koht. kuukausibudjetti","index":0,"n_rows":62,"n_cols":10,"rows_kept":62,"merged":[[0,1,0,9],[2,1,4,1],[2,2,2,3],[2,7,2,8],[3,2,3,3],[3,7,3,8],[4,2,4,3],[4,6,4,8],[5,1,7,1],[5,2,5,3],[5,7,5,8],[6,2,6,3],[6,7,6,8],[7,2,7,3],[7,6,7,8],[20,6,20,9],[21,1,21,4],[29,6,29,9],[31,1,31,4],[36,6,36,9],[38,1,38,4],[42,6,42,9],[44,1,44,4],[48,6,48,9],[52,1,52,4],[55,6,55,9]]}
[null,"Henk. koht. kuukausibudjetti"]
[]
[null,"SUUNNITELLUT KUUKAUSITTAISET TULOT","Tulot 1",null,{"v":2500,"d":"2,500 €"},null,"SUUNNITELTU KOKONAISKULU ","(suunnitellut tulot vähennettyinä kuluilla)",null,{"$f":"SUM(C21,C31,C38,C44,C52,C62,H20,H29,H36,H42,H48,H55)","v":{"v":2060,"d":"2,060 €"}}]
[null,null,"Lisätulot",null,{"v":500,"d":"500 €"},null,"TODELLINEN KOKONAISKULU ","(todelliset tulot vähennettyinä kuluilla)",null,{"$f":"SUM(D21,D31,D38,D44,D52,D62,I20,I29,I36,I42,I48,I55)","v":{"v":2040,"d":"2,040 €"}}]
[null,null,"Kuukausittaiset kokonaistulot",null,{"$f":"SUM(E3:E4)","v":{"v":3000,"d":"3,000 €"}},null,"Kulujen erotus yhteensä",null,null,{"$f":"SUM(E21,E31,E38,E44,E52,E62,J20,J29,J36,J42,J48,J55)","v":{"v":20,"d":"20 €"}}]
[null,"TODELLISET KUUKAUSITTAISET TULOT","Tulot 1",null,{"v":2500,"d":"2,500 €"},null,"SUUNNITELTU SALDO","(suunnitellut tulot vähennettyinä kuluilla)",null,{"$f":"E5-J3","v":{"v":940,"d":"940 €"}}]
[null,null,"Lisätulot",null,{"v":500,"d":"500 €"},null,"TODELLINEN SALDO","(todelliset tulot vähennettyinä kuluilla)",null,{"$f":"E8-J4","v":{"v":960,"d":"960 €"}}]
[null,null,"Kuukausittaiset kokonaistulot",null,{"$f":"SUM(E6:E7)","v":{"v":3000,"d":"3,000 €"}},null,"SALDOJEN EROTUS (todellinen vähennettynä suunnitellulla)",null,null,{"$f":"J7-J6","v":{"v":20,"d":"20 €"}}]
[]
[null,"ASUMINEN","Suunnitellut kustannukset","Todelliset kustannukset","Erotus",null,"VAPAA-AIKA","Suunnitellut kustannukset","Todelliset kustannukset","Erotus"]
[null,"Asuntolaina tai vuokra",{"v":1500,"d":"1,500 €"},{"v":1400,"d":"1,400 €"},{"$f":"Asuminen[[#This Row],[Suunnitellut kustannukset]]-Asuminen[[#This Row],[Todelliset kustannukset]]","v":{"v":100,"d":"100 €"}},null,"Videot/DVD-levyt",{"v":0,"d":"0 €"},{"v":50,"d":"50 €"},{"$f":"Viihde[[#This Row],[Suunnitellut kustannukset]]-Viihde[[#This Row],[Todelliset kustannukset]]","v":{"v":-50,"d":"-50 €"}}]
[null,"Puhelin",{"v":60,"d":"60 €"},{"v":100,"d":"100 €"},{"$f":"Asuminen[[#This Row],[Suunnitellut kustannukset]]-Asuminen[[#This Row],[Todelliset kustannukset]]","v":{"v":-40,"d":"-40 €"}},null,"CD-levyt",null,null,{"$f":"Viihde[[#This Row],[Suunnitellut kustannukset]]-Viihde[[#This Row],[Todelliset kustannukset]]","v":{"v":0,"d":"0 €"}}]
[null,"Sähkö",{"v":50,"d":"50 €"},{"v":60,"d":"60 €"},{"$f":"Asuminen[[#This Row],[Suunnitellut kustannukset]]-Asuminen[[#This Row],[Todelliset kustannukset]]","v":{"v":-10,"d":"-10 €"}},null,"Elokuvat",null,null,{"$f":"Viihde[[#This Row],[Suunnitellut kustannukset]]-Viihde[[#This Row],[Todelliset kustannukset]]","v":{"v":0,"d":"0 €"}}]
[null,"Lämmitys",{"v":200,"d":"200 €"},{"v":180,"d":"180 €"},{"$f":"Asuminen[[#This Row],[Suunnitellut kustannukset]]-Asuminen[[#This Row],[Todelliset kustannukset]]","v":{"v":20,"d":"20 €"}},null,"Konsertit",null,null,{"$f":"Viihde[[#This Row],[Suunnitellut kustannukset]]-Viihde[[#This Row],[Todelliset kustannukset]]","v":{"v":0,"d":"0 €"}}]
[null,"Vesi ja viemäröinti",null,null,{"$f":"Asuminen[[#This Row],[Suunnitellut kustannukset]]-Asuminen[[#This Row],[Todelliset kustannukset]]","v":{"v":0,"d":"0 €"}},null,"Urheilutapahtumat",null,null,{"$f":"Viihde[[#This Row],[Suunnitellut kustannukset]]-Viihde[[#This Row],[Todelliset kustannukset]]","v":{"v":0,"d":"0 €"}}]
[null,"Kaapeli",null,null,{"$f":"Asuminen[[#This Row],[Suunnitellut kustannukset]]-Asuminen[[#This Row],[Todelliset kustannukset]]","v":{"v":0,"d":"0 €"}},null,"Teatteri",null,null,{"$f":"Viihde[[#This Row],[Suunnitellut kustannukset]]-Viihde[[#This Row],[Todelliset kustannukset]]","v":{"v":0,"d":"0 €"}}]
[null,"Roskahuolto",null,null,{"$f":"Asuminen[[#This Row],[Suunnitellut kustannukset]]-Asuminen[[#This Row],[Todelliset kustannukset]]","v":{"v":0,"d":"0 €"}},null,"Muut",null,null,{"$f":"Viihde[[#This Row],[Suunnitellut kustannukset]]-Viihde[[#This Row],[Todelliset kustannukset]]","v":{"v":0,"d":"0 €"}}]
[null,"Huolto tai korjaukset",null,null,{"$f":"Asuminen[[#This Row],[Suunnitellut kustannukset]]-Asuminen[[#This Row],[Todelliset kustannukset]]","v":{"v":0,"d":"0 €"}},null,"Muut",null,null,{"$f":"Viihde[[#This Row],[Suunnitellut kustannukset]]-Viihde[[#This Row],[Todelliset kustannukset]]","v":{"v":0,"d":"0 €"}}]
[null,"Tarvikkeet",null,null,{"$f":"Asuminen[[#This Row],[Suunnitellut kustannukset]]-Asuminen[[#This Row],[Todelliset kustannukset]]","v":{"v":0,"d":"0 €"}},null,"Muut",null,null,{"$f":"Viihde[[#This Row],[Suunnitellut kustannukset]]-Viihde[[#This Row],[Todelliset kustannukset]]","v":{"v":0,"d":"0 €"}}]
[null,"Muut",null,null,{"$f":"Asuminen[[#This Row],[Suunnitellut kustannukset]]-Asuminen[[#This Row],[Todelliset kustannukset]]","v":{"v":0,"d":"0 €"}},null,"Summa",{"$f":"SUBTOTAL(109,Viihde[Suunnitellut kustannukset])","v":{"v":0,"d":"0 €"}},{"$f":"SUBTOTAL(109,Viihde[Todelliset kustannukset])","v":{"v":50,"d":"50 €"}},{"$f":"SUBTOTAL(109,Viihde[Erotus])","v":{"v":-50,"d":"-50 €"}}]
[null,"Summa",{"$f":"SUBTOTAL(109,Asuminen[Suunnitellut kustannukset])","v":{"v":1810,"d":"1,810 €"}},{"$f":"SUBTOTAL(109,Asuminen[Todelliset kustannukset])","v":{"v":1740,"d":"1,740 €"}},{"$f":"SUBTOTAL(109,Asuminen[Erotus])","v":{"v":70,"d":"70 €"}}]
[{"$nulls":6},"LAINAT","Suunnitellut kustannukset","Todelliset kustannukset","Erotus"]
[null,"LIIKKUMINEN","Suunnitellut kustannukset","Todelliset kustannukset","Erotus",null,"Henkilökohtainen",null,null,{"$f":"Lainat[[#This Row],[Suunnitellut kustannukset]]-Lainat[[#This Row],[Todelliset kustannukset]]","v":{"v":0,"d":"0 €"}}]
[null,"Ajoneuvomaksu",{"v":250,"d":"250 €"},{"v":250,"d":"250 €"},{"$f":"Liikkuminen[[#This Row],[Suunnitellut kustannukset]]-Liikkuminen[[#This Row],[Todelliset kustannukset]]","v":{"v":0,"d":"0 €"}},null,"Opiskelija",null,null,{"$f":"Lainat[[#This Row],[Suunnitellut kustannukset]]-Lainat[[#This Row],[Todelliset kustannukset]]","v":{"v":0,"d":"0 €"}}]
[null,"Linja-auto-/taksimaksu",null,null,{"$f":"Liikkuminen[[#This Row],[Suunnitellut kustannukset]]-Liikkuminen[[#This Row],[Todelliset kustannukset]]","v":{"v":0,"d":"0 €"}},null,"Luottokortti",null,null,{"$f":"Lainat[[#This Row],[Suunnitellut kustannukset]]-Lainat[[#This Row],[Todelliset kustannukset]]","v":{"v":0,"d":"0 €"}}]
[null,"Vakuutukset",null,null,{"$f":"Liikkuminen[[#This Row],[Suunnitellut kustannukset]]-Liikkuminen[[#This Row],[Todelliset kustannukset]]","v":{"v":0,"d":"0 €"}},null,"Luottokortti",null,null,{"$f":"Lainat[[#This Row],[Suunnitellut kustannukset]]-Lainat[[#This Row],[Todelliset kustannukset]]","v":{"v":0,"d":"0 €"}}]
[null,"Käyttöoikeudet",null,null,{"$f":"Liikkuminen[[#This Row],[Suunnitellut kustannukset]]-Liikkuminen[[#This Row],[Todelliset kustannukset]]","v":{"v":0,"d":"0 €"}},null,"Luottokortti",null,null,{"$f":"Lainat[[#This Row],[Suunnitellut kustannukset]]-Lainat[[#This Row],[Todelliset kustannukset]]","v":{"v":0,"d":"0 €"}}]
[null,"Polttoaine",null,null,{"$f":"Liikkuminen[[#This Row],[Suunnitellut kustannukset]]-Liikkuminen[[#This Row],[Todelliset kustannukset]]","v":{"v":0,"d":"0 €"}},null,"Muut",null,null,{"$f":"Lainat[[#This Row],[Suunnitellut kustannukset]]-Lainat[[#This Row],[Todelliset kustannukset]]","v":{"v":0,"d":"0 €"}}]
[null,"Ylläpito",null,null,{"$f":"Liikkuminen[[#This Row],[Suunnitellut kustannukset]]-Liikkuminen[[#This Row],[Todelliset kustannukset]]","v":{"v":0,"d":"0 €"}},null,"Summa",{"$f":"SUBTOTAL(109,Lainat[Suunnitellut kustannukset])","v":{"v":0,"d":"0 €"}},{"$f":"SUBTOTAL(109,Lainat[Todelliset kustannukset])","v":{"v":0,"d":"0 €"}},{"$f":"SUBTOTAL(109,Lainat[Erotus])","v":{"v":0,"d":"0 €"}}]
[null,"Muut",null,null,{"$f":"Liikkuminen[[#This Row],[Suunnitellut kustannukset]]-Liikkuminen[[#This Row],[Todelliset kustannukset]]","v":{"v":0,"d":"0 €"}}]
[null,"Summa",{"$f":"SUBTOTAL(109,Liikkuminen[Suunnitellut kustannukset])","v":{"v":250,"d":"250 €"}},{"$f":"SUBTOTAL(109,Liikkuminen[Todelliset kustannukset])","v":{"v":250,"d":"250 €"}},{"$f":"SUBTOTAL(109,Liikkuminen[Erotus])","v":{"v":0,"d":"0 €"}},null,"VEROT","Suunnitellut kustannukset","Todelliset kustannukset","Erotus"]
[{"$nulls":6},"Liittovaltio",null,null,{"$f":"Verot[[#This Row],[Suunnitellut kustannukset]]-Verot[[#This Row],[Todelliset kustannukset]]","v":{"v":0,"d":"0 €"}}]
[null,"VAKUUTUKSET","Suunnitellut kustannukset","Todelliset kustannukset","Erotus",null,"Osavaltio",null,null,{"$f":"Verot[[#This Row],[Suunnitellut kustannukset]]-Verot[[#This Row],[Todelliset kustannukset]]","v":{"v":0,"d":"0 €"}}]
[null,"Koti",null,null,{"$f":"Vakuutukset[[#This Row],[Suunnitellut kustannukset]]-Vakuutukset[[#This Row],[Todelliset kustannukset]]","v":{"v":0,"d":"0 €"}},null,"Paikallinen",null,null,{"$f":"Verot[[#This Row],[Suunnitellut kustannukset]]-Verot[[#This Row],[Todelliset kustannukset]]","v":{"v":0,"d":"0 €"}}]
[null,"Terveys",null,null,{"$f":"Vakuutukset[[#This Row],[Suunnitellut kustannukset]]-Vakuutukset[[#This Row],[Todelliset kustannukset]]","v":{"v":0,"d":"0 €"}},null,"Muut",null,null,{"$f":"Verot[[#This Row],[Suunnitellut kustannukset]]-Verot[[#This Row],[Todelliset kustannukset]]","v":{"v":0,"d":"0 €"}}]
[null,"Elämä",null,null,{"$f":"Vakuutukset[[#This Row],[Suunnitellut kustannukset]]-Vakuutukset[[#This Row],[Todelliset kustannukset]]","v":{"v":0,"d":"0 €"}},null,"Summa",{"$f":"SUBTOTAL(109,Verot[Suunnitellut kustannukset])","v":{"v":0,"d":"0 €"}},{"$f":"SUBTOTAL(109,Verot[Todelliset kustannukset])","v":{"v":0,"d":"0 €"}},{"$f":"SUBTOTAL(109,Verot[Erotus])","v":{"v":0,"d":"0 €"}}]
[null,"Muut",null,null,{"$f":"Vakuutukset[[#This Row],[Suunnitellut kustannukset]]-Vakuutukset[[#This Row],[Todelliset kustannukset]]","v":{"v":0,"d":"0 €"}}]
[null,"Summa",{"$f":"SUBTOTAL(109,Vakuutukset[Suunnitellut kustannukset])","v":{"v":0,"d":"0 €"}},{"$f":"SUBTOTAL(109,Vakuutukset[Todelliset kustannukset])","v":{"v":0,"d":"0 €"}},{"$f":"SUBTOTAL(109,Vakuutukset[Erotus])","v":{"v":0,"d":"0 €"}},null,"SÄÄSTÖT TAI SIJOITUKSET","Suunnitellut kustannukset","Todelliset kustannukset","Erotus"]
[{"$nulls":6},"Eläketili",null,null,{"$f":"SäästötTaiSijoitukset[[#This Row],[Suunnitellut kustannukset]]-SäästötTaiSijoitukset[[#This Row],[Todelliset kustannukset]]","v":{"v":0,"d":"0 €"}}]
[null,"RUOKAKULUT","Suunnitellut kustannukset","Todelliset kustannukset","Erotus",null,"Sijoitustili",null,null,{"$f":"SäästötTaiSijoitukset[[#This Row],[Suunnitellut kustannukset]]-SäästötTaiSijoitukset[[#This Row],[Todelliset kustannukset]]","v":{"v":0,"d":"0 €"}}]
[null,"Ruokatarvikkeet",null,null,{"$f":"Ruokakulut[[#This Row],[Suunnitellut kustannukset]]-Ruokakulut[[#This Row],[Todelliset kustannukset]]","v":{"v":0,"d":"0 €"}},null,"Muut",null,null,{"$f":"SäästötTaiSijoitukset[[#This Row],[Suunnitellut kustannukset]]-SäästötTaiSijoitukset[[#This Row],[Todelliset kustannukset]]","v":{"v":0,"d":"0 €"}}]
[null,"Ruokailu ulkona",null,null,{"$f":"Ruokakulut[[#This Row],[Suunnitellut kustannukset]]-Ruokakulut[[#This Row],[Todelliset kustannukset]]","v":{"v":0,"d":"0 €"}},null,"Summa",{"$f":"SUBTOTAL(109,SäästötTaiSijoitukset[Suunnitellut kustannukset])","v":{"v":0,"d":"0 €"}},{"$f":"SUBTOTAL(109,SäästötTaiSijoitukset[Todelliset kustannukset])","v":{"v":0,"d":"0 €"}},{"$f":"SUBTOTAL(109,SäästötTaiSijoitukset[Erotus])","v":{"v":0,"d":"0 €"}}]
[null,"Muut",null,null,{"$f":"Ruokakulut[[#This Row],[Suunnitellut kustannukset]]-Ruokakulut[[#This Row],[Todelliset kustannukset]]","v":{"v":0,"d":"0 €"}}]
[null,"Summa",{"$f":"SUBTOTAL(109,Ruokakulut[Suunnitellut kustannukset])","v":{"v":0,"d":"0 €"}},{"$f":"SUBTOTAL(109,Ruokakulut[Todelliset kustannukset])","v":{"v":0,"d":"0 €"}},{"$f":"SUBTOTAL(109,Ruokakulut[Erotus])","v":{"v":0,"d":"0 €"}},null,"LAHJAT JA LAHJOITUKSET","Suunnitellut kustannukset","Todelliset kustannukset","Erotus"]
[{"$nulls":6},"Lahjoitukset 1",null,null,{"$f":"Lahjoitukset[[#This Row],[Suunnitellut kustannukset]]-Lahjoitukset[[#This Row],[Todelliset kustannukset]]","v":{"v":0,"d":"0 €"}}]
[null,"LEMMIKKIELÄIMET","Suunnitellut kustannukset","Todelliset kustannukset","Erotus",null,"Lahjoitukset 2",null,null,{"$f":"Lahjoitukset[[#This Row],[Suunnitellut kustannukset]]-Lahjoitukset[[#This Row],[Todelliset kustannukset]]","v":{"v":0,"d":"0 €"}}]
[null,"Ruokakulut",null,null,{"$f":"Lemmikkieläimet[[#This Row],[Suunnitellut kustannukset]]-Lemmikkieläimet[[#This Row],[Todelliset kustannukset]]","v":{"v":0,"d":"0 €"}},null,"Lahjoitukset 3",null,null,{"$f":"Lahjoitukset[[#This Row],[Suunnitellut kustannukset]]-Lahjoitukset[[#This Row],[Todelliset kustannukset]]","v":{"v":0,"d":"0 €"}}]
[null,"Terveydenhoito",null,null,{"$f":"Lemmikkieläimet[[#This Row],[Suunnitellut kustannukset]]-Lemmikkieläimet[[#This Row],[Todelliset kustannukset]]","v":{"v":0,"d":"0 €"}},null,"Summa",{"$f":"SUBTOTAL(109,Lahjoitukset[Suunnitellut kustannukset])","v":{"v":0,"d":"0 €"}},{"$f":"SUBTOTAL(109,Lahjoitukset[Todelliset kustannukset])","v":{"v":0,"d":"0 €"}},{"$f":"SUBTOTAL(109,Lahjoitukset[Erotus])","v":{"v":0,"d":"0 €"}}]
[null,"Trimmaus",null,null,{"$f":"Lemmikkieläimet[[#This Row],[Suunnitellut kustannukset]]-Lemmikkieläimet[[#This Row],[Todelliset kustannukset]]","v":{"v":0,"d":"0 €"}}]
[null,"Lelut",null,null,{"$f":"Lemmikkieläimet[[#This Row],[Suunnitellut kustannukset]]-Lemmikkieläimet[[#This Row],[Todelliset kustannukset]]","v":{"v":0,"d":"0 €"}},null,"LAKIASIAT","Suunnitellut kustannukset","Todelliset kustannukset","Erotus"]
[null,"Muut",null,null,{"$f":"Lemmikkieläimet[[#This Row],[Suunnitellut kustannukset]]-Lemmikkieläimet[[#This Row],[Todelliset kustannukset]]","v":{"v":0,"d":"0 €"}},null,"Asianajaja",null,null,{"$f":"Lakiasiat[[#This Row],[Suunnitellut kustannukset]]-Lakiasiat[[#This Row],[Todelliset kustannukset]]","v":{"v":0,"d":"0 €"}}]
[null,"Summa",{"$f":"SUBTOTAL(109,Lemmikkieläimet[Suunnitellut kustannukset])","v":{"v":0,"d":"0 €"}},{"$f":"SUBTOTAL(109,Lemmikkieläimet[Todelliset kustannukset])","v":{"v":0,"d":"0 €"}},{"$f":"SUBTOTAL(109,Lemmikkieläimet[Erotus])","v":{"v":0,"d":"0 €"}},null,"Elatusapu",null,null,{"$f":"Lakiasiat[[#This Row],[Suunnitellut kustannukset]]-Lakiasiat[[#This Row],[Todelliset kustannukset]]","v":{"v":0,"d":"0 €"}}]
[{"$nulls":6},"Pantti- tai sakkomaksut",null,null,{"$f":"Lakiasiat[[#This Row],[Suunnitellut kustannukset]]-Lakiasiat[[#This Row],[Todelliset kustannukset]]","v":{"v":0,"d":"0 €"}}]
[null,"HYVINVOINTI","Suunnitellut kustannukset","Todelliset kustannukset","Erotus",null,"Muut",null,null,{"$f":"Lakiasiat[[#This Row],[Suunnitellut kustannukset]]-Lakiasiat[[#This Row],[Todelliset kustannukset]]","v":{"v":0,"d":"0 €"}}]
[null,"Terveydenhoito",null,null,{"$f":"OmaHyvinvointi[[#This Row],[Suunnitellut kustannukset]]-OmaHyvinvointi[[#This Row],[Todelliset kustannukset]]","v":{"v":0,"d":"0 €"}},null,"Summa",{"$f":"SUBTOTAL(109,Lakiasiat[Suunnitellut kustannukset])","v":{"v":0,"d":"0 €"}},{"$f":"SUBTOTAL(109,Lakiasiat[Todelliset kustannukset])","v":{"v":0,"d":"0 €"}},{"$f":"SUBTOTAL(109,Lakiasiat[Erotus])","v":{"v":0,"d":"0 €"}}]
[null,"Kampaamo/kynnet",null,null,{"$f":"OmaHyvinvointi[[#This Row],[Suunnitellut kustannukset]]-OmaHyvinvointi[[#This Row],[Todelliset kustannukset]]","v":{"v":0,"d":"0 €"}}]
[null,"Vaatteet",null,null,{"$f":"OmaHyvinvointi[[#This Row],[Suunnitellut kustannukset]]-OmaHyvinvointi[[#This Row],[Todelliset kustannukset]]","v":{"v":0,"d":"0 €"}}]
[null,"Pesula",null,null,{"$f":"OmaHyvinvointi[[#This Row],[Suunnitellut kustannukset]]-OmaHyvinvointi[[#This Row],[Todelliset kustannukset]]","v":{"v":0,"d":"0 €"}}]
[null,"Kuntokeskus",null,null,{"$f":"OmaHyvinvointi[[#This Row],[Suunnitellut kustannukset]]-OmaHyvinvointi[[#This Row],[Todelliset kustannukset]]","v":{"v":0,"d":"0 €"}}]
[null,"Järjestöjen laskut tai jäsenmaksut",null,null,{"$f":"OmaHyvinvointi[[#This Row],[Suunnitellut kustannukset]]-OmaHyvinvointi[[#This Row],[Todelliset kustannukset]]","v":{"v":0,"d":"0 €"}}]
[null,"Muut",null,null,{"$f":"OmaHyvinvointi[[#This Row],[Suunnitellut kustannukset]]-OmaHyvinvointi[[#This Row],[Todelliset kustannukset]]","v":{"v":0,"d":"0 €"}}]
[null,"Summa",{"$f":"SUBTOTAL(109,OmaHyvinvointi[Suunnitellut kustannukset])","v":{"v":0,"d":"0 €"}},{"$f":"SUBTOTAL(109,OmaHyvinvointi[Todelliset kustannukset])","v":{"v":0,"d":"0 €"}},{"$f":"SUBTOTAL(109,OmaHyvinvointi[Erotus])","v":{"v":0,"d":"0 €"}}]